fUST/lending_fUST_20251120
["ID","MTS","AMOUNT","RATE_DAILY","PERIOD"]
[394454000,1763589313902,151.0,0.00039986,120]
[394454001,1763589313981,217.15233878,0.00039986,120]
[394454002,1763589314547,151.0,0.00039986,120]
[394454003,1763589314625,225.18697532,0.00039986,120]
[394454004,1763589314696,151.0,0.00039986,120]
[394454005,1763589315248,151.0,0.00039986,120]
[394454006,1763589315320,233.51889341,0.00039986,120]
[394454007,1763589315386,151.0,0.00039986,120]
[394454008,1763589315556,155.85431007,0.00039986,30]
[394454009,1763589315624,554.07313884,0.00039986,120]
[394454010,1763589315901,151.0,0.00039986,120]
[394454011,1763589316025,233.51889341,0.00039986,120]
[394454012,1763589316514,151.0,0.00039986,120]
[394454013,1763589317161,151.0,0.00039986,120]
[394454014,1763589317979,209.0,0.00024295,120]
[394454015,1763589318242,151.0,0.00039986,120]
[394454016,1763589318847,151.0,0.00039986,120]
[394454017,1763589319340,209.0,0.0002551,120]
[394454018,1763589319466,151.0,0.00039986,120]
[394454019,1763589320098,151.0,0.00039986,120]
[394454020,1763589320718,151.0,0.00039986,120]
[394454021,1763589320795,209.0,0.00026785,120]
[394454022,1763589322666,151.0,0.00039986,120]
[394454023,1763589323286,151.0,0.00039986,120]
[394454024,1763589323904,151.0,0.00039986,120]
[394454025,1763589324167,209.0,0.00028124,120]
[394454026,1763589324593,151.0,0.00039986,120]
[394454027,1763589325205,151.0,0.00039986,120]
[394454028,1763589325508,209.0,0.00029531,120]
[394454029,1763589325809,151.0,0.00039986,120]
[394454030,1763589326917,209.0,0.00031007,120]
[394454031,1763589328380,209.0,0.00032558,120]
[394454032,1763589331541,154.21301802,0.00039986,120]
[394454033,1763589608618,210.0,0.00026196,120]
[394454034,1763589610003,210.0,0.00027505,120]
[394454035,1763589611309,210.0,0.00028881,120]
[394454036,1763589615943,151.0,0.00039986,120]
[394454037,1763589712958,-193.93844079,0.00010426,2]
[394454038,1763589728196,-300.0,0.00010659,2]
[394454039,1763589728228,-1200.0,0.0001066,2]
[394454040,1763589728259,-394.17614351,0.0001066,2]
[394454041,1763589728290,-532.2112468,0.0001066,2]
[394454042,1763589728323,-500.0,0.0001066,2]
[394454043,1763589728355,-263.37694205,0.0001066,2]
[394454044,1763589728386,-322.70066541,0.0001066,2]
[394454045,1763589728425,-1214.87470684,0.0001066,2]
[394454046,1763589728597,-545.33059078,0.0001066,2]
[394454047,1763589728629,-500.0,0.0001066,2]
[394454048,1763589728665,-1760.20529762,0.0001066,2]
[394454049,1763589728698,-500.0,0.0001066,2]
[394454050,1763589728733,-500.0,0.0001066,2]
[394454051,1763589728763,-500.0,0.0001066,2]
[394454052,1763589728797,-500.0,0.0001066,2]
[394454053,1763589728872,-500.0,0.0001066,2]
[394454054,1763589728910,-1760.20529762,0.0001066,2]
[394454055,1763589728949,-500.0,0.0001066,2]
[394454056,1763589728982,-500.0,0.0001066,2]
[394454057,1763589729013,-500.0,0.0001066,2]
[394454058,1763589729052,-719.39410714,0.0001066,2]
[394454059,1763589729312,-1040.81119048,0.0001066,2]
[394454060,1763589729345,-500.0,0.0001066,2]
[394454061,1763589729378,-500.0,0.0001066,2]
[394454062,1763589729410,-500.0,0.0001066,2]
[394454063,1763589729448,-1760.20529762,0.0001066,2]
[394454064,1763589729478,-500.0,0.0001066,2]
[394454065,1763589729625,-500.0,0.0001066,2]
[394454066,1763589729658,-500.0,0.0001066,2]
[394454067,1763589729691,-500.0,0.0001066,2]
[394454068,1763589729730,-500.0,0.0001066,2]
[394454069,1763589729762,-500.0,0.0001066,2]
[394454070,1763589729796,-500.0,0.0001066,2]
[394454071,1763589729827,-500.0,0.0001066,2]
[394454072,1763589729858,-500.0,0.0001066,2]
[394454073,1763589729888,-500.0,0.0001066,2]
[394454074,1763589729920,-500.0,0.0001066,2]
[394454075,1763589730066,-1760.20529762,0.0001066,2]
[394454076,1763589730099,-500.0,0.0001066,2]
[394454077,1763589730129,-500.0,0.0001066,2]
[394454078,1763589730161,-500.0,0.0001066,2]
[394454079,1763589730200,-1719.39410714,0.0001066,2]
[394454080,1763589730310,-40.81119048,0.0001066,2]
[394454081,1763589730343,-500.0,0.0001066,2]
[394454082,1763589730377,-500.0,0.0001066,2]
[394454083,1763589730409,-500.0,0.0001066,2]
[394454084,1763589730453,-1760.20529762,0.0001066,2]
[394454085,1763589730484,-500.0,0.0001066,2]
[394454086,1763589730517,-500.0,0.0001066,2]
[394454087,1763589730547,-500.0,0.0001066,2]
[394454088,1763589730643,-1760.20529762,0.0001066,2]
[394454089,1763589730676,-500.0,0.0001066,2]
[394454090,1763589730713,-500.0,0.0001066,2]
[394454091,1763589730751,-1760.20529762,0.0001066,2]
[394454092,1763589730784,-459.18880952,0.0001066,2]
[394454093,1763589730854,-40.81119048,0.0001066,2]
[394454094,1763589730885,-500.0,0.0001066,2]
[394454095,1763589730916,-500.0,0.0001066,2]
[394454096,1763589730947,-500.0,0.0001066,2]
[394454097,1763589730991,-1760.20529762,0.0001066,2]
[394454098,1763589731023,-500.0,0.0001066,2]
[394454099,1763589731055,-500.0,0.0001066,2]
[394454100,1763589732335,-162.71172172,0.0001066,2]
[394454101,1763589732355,-1597.4935759,0.0001066,2]
[394454102,1763589732364,-162.71172172,0.0001066,2]
[394454103,1763589732384,-337.28827828,0.0001066,2]
[394454104,1763589732394,-162.71172172,0.0001066,2]
[394454106,1763589732412,-337.28827828,0.0001066,2]
[394454107,1763589732421,-162.71172172,0.0001066,2]
[394454108,1763589732437,-337.28827828,0.0001066,2]
[394454109,1763589732446,-1060.68874552,0.0001066,2]
[394454110,1763589734140,-699.5165521,0.0001066,2]
[394454111,1763589734171,-500.0,0.0001066,2]
[394454112,1763589734205,-500.0,0.0001066,2]
[394454113,1763589734241,-1760.20529762,0.0001066,2]
[394454114,1763589734273,-500.0,0.0001066,2]
[394454115,1763589734303,-500.0,0.0001066,2]
[394454116,1763589734335,-500.0,0.0001066,2]
[394454117,1763589734439,-1760.20529762,0.0001066,2]
[394454118,1763589734474,-500.0,0.0001066,2]
[394454119,1763589734509,-500.0,0.0001066,2]
[394454120,1763589734549,-1760.20529762,0.0001066,2]
[394454121,1763589734581,-459.18880952,0.0001066,2]
[394454122,1763589734680,-40.81119048,0.0001066,2]
[394454123,1763589734715,-500.0,0.0001066,2]
[394454124,1763589734746,-500.0,0.0001066,2]
[394454125,1763589734784,-1760.20529762,0.0001066,2]
[394454126,1763589734815,-500.0,0.0001066,2]
[394454127,1763589734850,-1637.77172618,0.0001066,2]
[394454128,1763589735111,-122.43357144,0.0001066,2]
[394454129,1763589735143,-500.0,0.0001066,2]
[394454130,1763589735177,-500.0,0.0001066,2]
[394454131,1763589735209,-500.0,0.0001066,2]
[394454132,1763589735245,-1760.20529762,0.0001066,2]
[394454133,1763589735279,-500.0,0.0001066,2]
[394454134,1763589735311,-500.0,0.0001066,2]
[394454135,1763589735397,-1760.20529762,0.0001066,2]
[394454136,1763589735428,-500.0,0.0001066,2]
[394454137,1763589735459,-500.0,0.0001066,2]
[394454138,1763589735497,-1760.20529762,0.0001066,2]
[394454139,1763589735531,-459.18880952,0.0001066,2]
[394454140,1763589735985,-40.81119048,0.0001066,2]
[394454141,1763589735995,-500.0,0.0001066,2]
[394454142,1763589736004,-519.35451484,0.0001066,2]
[394454143,1763589736021,-500.0,0.0001066,2]
[394454144,1763589740181,-740.85078278,0.0001066,2]
[394454145,1763589740216,-500.0,0.0001066,2]
[394454146,1763589740249,-500.0,0.0001066,2]
[394454147,1763589740289,-1760.20529762,0.0001066,2]
[394454148,1763589740320,-500.0,0.0001066,2]
[394454149,1763589740351,-500.0,0.0001066,2]
[394454150,1763589740381,-497.8978392,0.0001066,2]
[394454151,1763589740590,-2.1021608,0.0001066,2]
[394454152,1763589740627,-1760.20529762,0.0001066,2]
[394454153,1763589740659,-500.0,0.0001066,2]
[394454154,1763589740696,-1760.20529762,0.0001066,2]
[394454155,1763589740734,-500.0,0.0001066,2]
[394454156,1763589740835,-1760.20529762,0.0001066,2]
[394454157,1763589740870,-1760.20529762,0.0001066,2]
[394454158,1763589740900,-500.0,0.0001066,2]
[394454159,1763589740929,-500.0,0.0001066,2]
[394454160,1763589740993,-1760.20529762,0.0001066,2]
[394454161,1763589741023,-500.0,0.0001066,2]
[394454162,1763589741059,-1760.20529762,0.0001066,2]
[394454163,1763589741090,-500.0,0.0001066,2]
[394454164,1763589741190,-1760.20529762,0.0001066,2]
[394454165,1763589741222,-500.0,0.0001066,2]
[394454166,1763589741259,-1760.20529762,0.0001066,2]
[394454167,1763589741296,-198.9835119,0.0001066,2]
[394454168,1763589741428,-1561.22178572,0.0001066,2]
[394454169,1763589741466,-1760.20529762,0.0001066,2]
[394454170,1763589741499,-500.0,0.0001066,2]
[394454171,1763589741538,-596.9505357,0.0001066,2]
[394454172,1763589741670,-1163.25476192,0.0001066,2]
[394454173,1763589741705,-1760.20529762,0.0001066,2]
[394454174,1763589741744,-1760.20529762,0.0001066,2]
[394454175,1763589742211,-916.27545824,0.0001066,2]
[394454176,1763589742241,-843.92983938,0.0001066,2]
[394454177,1763589742251,-319.32492254,0.0001066,2]
[394454178,1763589742281,-1440.88037508,0.0001066,2]
[394454179,1763589742290,-319.32492254,0.0001066,2]
[394454180,1763589742331,-1440.88037508,0.0001066,2]
[394454181,1763589742340,-319.32492254,0.0001066,2]
[394454182,1763589742355,-632.67928568,0.0001066,2]
[394454186,1763589836205,163.44132153,0.00010349,2]
[394454187,1763589858665,163.44132153,0.00010349,2]
[394454188,1763589880434,163.44132153,0.00010349,2]
[394454189,1763589902219,163.44132153,0.00010349,2]
[394454190,1763589923990,163.44132153,0.00010349,2]
[394454191,1763589939184,163.44132153,0.00010349,2]
[394454192,1763589946997,163.44132153,0.00010349,2]
[394454193,1763589955299,163.44132153,0.00010349,2]
[394454194,1763589963192,163.44132153,0.00010349,2]
[394454195,1763589971728,163.44132153,0.00010349,2]
[394454196,1763589979535,163.44132153,0.00010349,2]
[394454197,1763589987705,163.44132153,0.00010349,2]
[394454198,1763589995977,163.44132153,0.00010349,2]
[394454199,1763590004022,163.44132153,0.00010349,2]
[394454200,1763590012376,163.44132153,0.00010349,2]
[394454321,1763590020416,163.44132153,0.00010349,2]
[394454322,1763590024514,-163.44132153,0.00010454,2]
[394454323,1763590028245,2400.0,0.00010447,2]
[394454324,1763590036269,2003.49264471,0.00010447,2]
[394454326,1763590044171,2400.0,0.00010447,2]
[394454330,1763590052179,2400.0,0.00010447,2]
[394454331,1763590067428,469.63471223,0.00010447,2]
[394454332,1763590067454,1930.36528777,0.00010447,2]
[394454333,1763590075300,1200.0,0.00010447,2]
[394454334,1763590090355,1200.0,0.00010447,2]
[394454335,1763590097544,211.9726824,9.718e-05,2]
[394454336,1763590098104,1200.0,0.00010447,2]
[394454337,1763590113817,1200.0,0.00010447,2]
[394454338,1763590121618,1200.0,0.00010447,2]
[394454340,1763590136762,1200.0,0.00010447,2]
[394454341,1763590145096,657.67202983,0.00010447,2]
[394454342,1763590145123,542.32797017,0.00010447,2]
[394454343,1763590160216,1200.0,0.00010447,2]
[394454344,1763590162326,1275.58,0.00032877,120]
[394454345,1763590168089,963.4508869,0.00010447,2]
[394454346,1763590183159,1200.0,0.00010447,2]
[394454348,1763590205889,1200.0,0.00010447,2]
[394454353,1763590228762,1500.0,0.0001045,2]
[394454670,1763590246797,-300.0,0.00010556,2]
[394454671,1763590246806,-58.49902386,0.00010556,2]
[394454672,1763590251735,1141.50097614,0.0001045,2]
[394454678,1763590274956,300.0,0.00010449,2]
[394454679,1763590297351,300.0,0.00010449,2]
[394454680,1763590319653,300.0,0.00010449,2]
[394454681,1763590321096,-300.0,0.00010555,2]
[394454682,1763590322276,300.0,0.00010555,2]
[394454684,1763590335857,166.05884,9.663e-05,2]
[394454685,1763590336140,166.05884,9.663e-05,120]
[394454686,1763590336532,220.0,0.00016268,29]
[394454687,1763590342039,192.75152402,0.0001045,2]
[394454688,1763590364892,192.75152402,0.0001045,2]
[394454689,1763590367812,1200.0,0.00010555,2]
[394454690,1763590382737,205114.83,0.00040003,20]
[394454691,1763590382882,287.0,0.00010555,2]
[394454692,1763590387158,192.75152402,0.0001045,2]
[394454693,1763590409431,6868.69658794,0.0001045,2]
[394454694,1763590409458,10000.01,0.0001045,2]
[394454695,1763590409483,10000.01,0.0001045,2]
[394454696,1763590409508,10000.01,0.0001045,2]
[394454697,1763590409532,10000.01,0.0001045,2]
[394454698,1763590409556,10000.01,0.0001045,2]
[394454699,1763590409585,10000.01,0.0001045,2]
[394454700,1763590409609,10000.01,0.0001045,2]
[394454701,1763590409635,5363.72392018,0.0001045,2]
[394454702,1763590444065,-1670.67764239,0.00010346,2]
[394454703,1763590444096,-1670.67764239,0.0001045,2]
[394454704,1763590454536,300.0,0.00010448,2]
[394454705,1763590476836,300.0,0.00010448,2]
[394454706,1763590499188,300.0,0.00010448,2]
[394454707,1763590506192,151.0,0.00040003,20]
[394454708,1763590506825,151.0,0.00040003,20]
[394454709,1763590507470,151.0,0.00040003,20]
[394454710,1763590508060,151.0,0.00040003,20]
[394454711,1763590508683,151.0,0.00040003,20]
[394454712,1763590509318,151.0,0.00040003,20]
[394454713,1763590509687,278.02563972,0.00040003,120]
[394454714,1763590509917,151.0,0.00040003,20]
[394454715,1763590510525,151.0,0.00040003,20]
[394454716,1763590511289,151.0,0.00040003,20]
[394454717,1763590511790,151.0,0.00040003,20]
[394454718,1763590512440,151.0,0.00040003,20]
[394454719,1763590513072,151.0,0.00040003,20]
[394454720,1763590513697,151.0,0.00040003,20]
[394454721,1763590514365,151.0,0.00040003,20]
[394454722,1763590515096,151.0,0.00040003,20]
[394454723,1763590515726,151.0,0.00040003,20]
[394454724,1763590516415,151.0,0.00040003,20]
[394454725,1763590517041,151.0,0.00040003,20]
[394454726,1763590517675,151.0,0.00040003,20]
[394454727,1763590518468,151.0,0.00040003,20]
[394454728,1763590519236,597.82,0.00040003,20]
[394454729,1763590613510,369.95,0.00040003,20]
[394454730,1763590687749,206.57223267,0.00010246,2]
[394454731,1763590794950,512.09610179,0.00010452,2]
[394454732,1763590809352,9487.91389821,9.632e-05,2]
[394454733,1763590809376,10000.01,9.632e-05,2]
[394454734,1763590809400,5303.37402539,9.632e-05,2]
[394454735,1763590815834,2051.21439639,0.00010445,2]
[394454737,1763590912859,-1413.81771071,0.00010238,2]
[394454738,1763590912886,-1413.81771071,0.00010341,2]
[394454739,1763590912914,-1972.73915716,0.00010445,2]
[394454740,1763590913880,794.05124959,0.00040003,20]
[394454741,1763590918828,-399.26084284,0.00010445,2]
[394454742,1763590925433,300.0,0.00010445,2]
[394454743,1763590933150,300.0,0.00010445,2]
[394454744,1763590941176,300.0,0.00010445,2]
[394454745,1763590949032,300.0,0.00010445,2]
[394454746,1763590957158,300.0,0.00010445,2]
[394454747,1763590964860,300.0,0.00010445,2]
[394454748,1763590973144,1200.0,0.00010444,2]
[394454749,1763590980932,1200.0,0.00010444,2]
[394454750,1763590989503,1500.0,0.00010444,2]
[394454751,1763590997259,1028.56396603,0.00010444,2]
[394454752,1763591005809,1500.0,0.00010444,2]
[394454753,1763591013792,1500.0,0.00010444,2]
[394454754,1763591022299,571.44603397,0.00010444,2]
[394454755,1763591022323,833.49958551,0.00010444,2]
[394454756,1763591030561,1500.0,0.00010444,2]
[394454757,1763591038686,1500.0,0.00010444,2]
[394454758,1763591046521,1500.0,0.00010444,2]
[394454759,1763591054666,1500.0,0.00010444,2]
[394454760,1763591062451,1500.0,0.00010444,2]
[394454761,1763591070445,1500.0,0.00010444,2]
[394454762,1763591078274,166.51041449,0.00010444,2]
[394454763,1763591078299,1333.48958551,0.00010444,2]
[394454764,1763591086791,1500.0,0.00010444,2]
[394454765,1763591094410,10000.0,0.00040003,20]
[394454766,1763591094927,1500.0,0.00010444,2]
[394454767,1763591102947,287.0,0.00010443,2]
[394454768,1763591110745,2372.0,0.00010443,2]
[394454769,1763591119305,981.86720015,0.00010443,2]
[394454770,1763591168024,-227.91271071,0.00010236,2]
[394454771,1763591168059,-2372.0,0.00010339,2]
[394454772,1763591168095,-2372.0,0.00010443,2]
[394454773,1763591172895,56.18457858,0.00010442,2]
[394454774,1763591172921,243.81542142,0.00010442,2]
[394454775,1763591181272,300.0,0.00010442,2]
[394454776,1763591192120,-300.0,0.00010547,2]
[394454777,1763591192143,-18.2742411,0.00010548,2]
[394454778,1763591196979,2053.7257589,0.00010443,2]
[394454779,1763591204936,969.0239966,0.00010443,2]
[394454782,1763591220070,2053.7257589,0.00010443,2]
[394454783,1763591243555,300.0,0.00010442,2]
[394454784,1763591267258,300.0,0.00010442,2]
[394454785,1763591274221,1004.81,0.00032877,120]
[394454787,1763591300785,287.86324376,0.0001,2]
[394454788,1763591397159,9412.14675624,0.00010449,2]
[394454789,1763591397184,10000.01,0.00010449,2]
[394454790,1763591397209,10000.01,0.00010449,2]
[394454911,1763591433061,-269.0,0.00010448,2]
[394454913,1763591433072,-285.0,0.00010448,2]
[394454915,1763591433082,-300.0,0.00010448,2]
[394454917,1763591433092,-300.0,0.00010448,2]
[394454919,1763591433101,-1200.0,0.00010448,2]
[394454922,1763591433110,-5244.65902973,0.00010449,2]
[394454950,1763591438250,-17833.61088658,0.00010449,2]
[394455091,1763591525013,3390.0,0.000141,3]
[394455123,1763591566551,278.0675522,0.00032876,120]
[394455138,1763591708696,500.0,0.00040002,120]
[394455139,1763591709432,500.0,0.00040002,120]
[394455140,1763591712825,500.0,0.00040002,120]
[394455141,1763591713588,500.0,0.00040002,120]
[394455142,1763591714177,500.0,0.00040002,120]
[394455143,1763591714819,500.0,0.00040002,120]
[394455144,1763591715445,500.0,0.00040002,120]
[394455145,1763591716262,500.0,0.00040002,120]
[394455146,1763591716996,500.0,0.00040002,120]
[394455147,1763591717627,500.0,0.00040002,120]
[394455148,1763591718287,500.0,0.00040002,120]
[394455149,1763591718905,500.0,0.00040002,120]
[394455161,1763591982337,756.59,0.00032876,120]
[394455162,1763592011340,500.0,0.00040002,120]
[394455168,1763592111477,5000.0,0.00039999,76]
[394455174,1763592150234,-201.15260853,0.00010419,2]
[394455180,1763592256477,1500.0,0.00010337,2]
[394455181,1763592278531,1500.0,0.00010337,2]
[394455182,1763592301002,1500.0,0.00010337,2]
[394455184,1763592324608,1500.0,0.00010336,2]
[394455185,1763592332689,600.0,0.00010336,2]
[394455190,1763592347883,1500.0,0.00010336,2]
[394455191,1763592371117,1497.70478294,0.00010336,2]
[394455192,1763592371141,2.29521706,0.00010336,2]
[394455194,1763592386590,9997.71478294,0.00010343,2]
[394455195,1763592386615,10000.01,0.00010343,2]
[394455196,1763592386642,10000.01,0.00010343,2]
[394455197,1763592386667,10000.01,0.00010343,2]
[394455198,1763592386691,10000.01,0.00010343,2]
[394455199,1763592386716,10000.01,0.00010343,2]
[394455200,1763592386743,10000.01,0.00010343,2]
[394455201,1763592386768,10000.01,0.00010343,2]
[394455203,1763592523667,335.875791,0.00030137,120]
[394455204,1763592543113,203.6876821,9.341e-05,2]
[394455205,1763592547166,-900.0,0.00010138,2]
[394455206,1763592547185,-197.12955636,0.00010188,2]
[394455207,1763592547205,-300.0,0.00010238,2]
[394455208,1763592547224,-1200.0,0.00010239,2]
[394455209,1763592547244,-473.0247369,0.00010239,2]
[394455269,1763592633723,-330.25242726,0.00010137,2]
[394455270,1763592633735,-169.74757274,0.00010137,2]
[394455271,1763592633745,-300.0,0.00010238,2]
[394455272,1763592633754,-1200.0,0.00010238,2]
[394455273,1763592633764,-500.0,0.00010239,2]
[394455274,1763592633774,-570.91762772,0.00010239,2]
[394455275,1763592633783,-594.02335773,0.00010239,2]
[394455276,1763592633792,-685.12334262,0.00010343,2]
[394455277,1763592633834,-299.97534671,0.00010343,2]
[394455278,1763592633845,-269370.89195123,0.00010343,2]
[394455279,1763592633856,-1671.97144,0.00010343,2]
[394455303,1763592638462,-500.0,0.00010238,2]
[394455305,1763592638471,-500.0,0.00010238,2]
[394455307,1763592638480,-500.0,0.00010238,2]
[394455309,1763592638490,-500.0,0.00010238,2]
[394455311,1763592638501,-500.0,0.00010238,2]
[394455313,1763592638510,-3002.21045256,0.00010238,2]
[394455315,1763592638519,-500.0,0.00010238,2]
[394455316,1763592638529,-500.0,0.00010238,2]
[394455318,1763592638538,-500.0,0.00010238,2]
[394455320,1763592638547,-500.0,0.00010238,2]
[394455322,1763592638556,-209.1765731,0.00010238,2]
[394455324,1763592638566,-500.0,0.00010238,2]
[394455326,1763592638575,-1709.58121925,0.00010238,2]
[394455328,1763592638587,-1292.62923331,0.00010238,2]
[394455330,1763592638597,-237.18764998,0.00010238,2]
[394455340,1763592638682,-262.81235002,0.00010238,2]
[394455342,1763592638692,-500.0,0.00010238,2]
[394455344,1763592638701,-500.0,0.00010238,2]
[394455346,1763592638711,-500.0,0.00010238,2]
[394455348,1763592638720,-500.0,0.00010238,2]
[394455350,1763592638729,-500.0,0.00010238,2]
[394455352,1763592638740,-3002.21045256,0.00010238,2]
[394455354,1763592638749,-500.0,0.00010238,2]
[394455356,1763592638759,-500.0,0.00010238,2]
[394455358,1763592638768,-500.0,0.00010238,2]
[394455360,1763592638778,-3002.21045256,0.00010238,2]
[394455362,1763592638787,-500.0,0.00010238,2]
[394455364,1763592638796,-383.53728649,0.00010238,2]
[394455366,1763592638805,-500.0,0.00010238,2]
[394455368,1763592638814,-3002.21045256,0.00010238,2]
[394455370,1763592638823,-500.0,0.00010238,2]
[394455372,1763592638834,-500.0,0.00010238,2]
[394455374,1763592638843,-500.0,0.00010238,2]
[394455376,1763592638853,-500.0,0.00010238,2]
[394455378,1763592638862,-500.0,0.00010238,2]
[394455380,1763592638873,-500.0,0.00010238,2]
[394455382,1763592638882,-3002.21045256,0.00010238,2]
[394455384,1763592638892,-500.0,0.00010238,2]
[394455386,1763592638902,-500.0,0.00010238,2]
[394455388,1763592638912,-500.0,0.00010238,2]
[394455390,1763592638922,-500.0,0.00010238,2]
[394455392,1763592638932,-500.0,0.00010238,2]
[394455394,1763592638941,-3002.21045256,0.00010238,2]
[394455396,1763592638951,-500.0,0.00010238,2]
[394455398,1763592638961,-500.0,0.00010238,2]
[394455400,1763592638970,-500.0,0.00010238,2]
[394455402,1763592638980,-3002.21045256,0.00010238,2]
[394455404,1763592638990,-500.0,0.00010238,2]
[394455406,1763592638999,-500.0,0.00010238,2]
[394455408,1763592639009,-500.0,0.00010238,2]
[394455410,1763592639018,-500.0,0.00010238,2]
[394455412,1763592639028,-3002.21045256,0.00010238,2]
[394455414,1763592639038,-500.0,0.00010238,2]
[394455416,1763592639047,-500.0,0.00010238,2]
[394455418,1763592639057,-500.0,0.00010238,2]
[394455420,1763592639067,-3002.21045256,0.00010238,2]
[394455422,1763592639076,-500.0,0.00010238,2]
[394455424,1763592639086,-163.35232918,0.00010238,2]
[394455589,1763592640734,-336.64767082,0.00010238,2]
[394455591,1763592640745,-500.0,0.00010238,2]
[394455593,1763592640754,-3002.21045256,0.00010238,2]
[394455595,1763592640763,-500.0,0.00010238,2]
[394455597,1763592640772,-3002.21045256,0.00010238,2]
[394455599,1763592640782,-500.0,0.00010238,2]
[394455601,1763592640791,-500.0,0.00010238,2]
[394455603,1763592640801,-922.77124709,0.00010238,2]
[394455606,1763592640813,-2079.43920547,0.00010238,2]
[394455608,1763592640827,-3002.21045256,0.00010238,2]
[394455610,1763592640837,-500.0,0.00010238,2]
[394455613,1763592640846,-3002.21045256,0.00010238,2]
[394455615,1763592640855,-500.0,0.00010238,2]
[394455616,1763592640864,-3002.21045256,0.00010238,2]
[394455618,1763592640873,-500.0,0.00010238,2]
[394455620,1763592640882,-500.0,0.00010238,2]
[394455622,1763592640892,-500.0,0.00010238,2]
[394455623,1763592640902,-500.0,0.00010238,2]
[394455624,1763592640911,-3002.21045256,0.00010238,2]
[394455625,1763592640920,-500.0,0.00010238,2]
[394455626,1763592640930,-500.0,0.00010238,2]
[394455627,1763592640939,-3002.21045256,0.00010238,2]
[394455628,1763592640949,-500.0,0.00010238,2]
[394455629,1763592640958,-3002.21045256,0.00010238,2]
[394455630,1763592640967,-500.0,0.00010238,2]
[394455631,1763592640977,-2036.61994179,0.00010238,2]
[394455632,1763592640989,-965.59051077,0.00010238,2]
[394455633,1763592640999,-500.0,0.00010238,2]
[394455634,1763592641009,-341.59983836,0.00010238,2]
[394455651,1763592645229,-2660.6106142,0.00010238,2]
[394455652,1763592645240,-500.0,0.00010238,2]
[394455653,1763592645250,-3002.21045256,0.00010238,2]
[394455654,1763592645259,-500.0,0.00010238,2]
[394455655,1763592645268,-500.0,0.00010238,2]
[394455656,1763592645276,-3002.21045256,0.00010238,2]
[394455657,1763592645285,-500.0,0.00010238,2]
[394455658,1763592645295,-3002.21045256,0.00010238,2]
[394455659,1763592645304,-500.0,0.00010238,2]
[394455660,1763592645313,-500.0,0.00010238,2]
[394455661,1763592645322,-3002.21045256,0.00010238,2]
[394455662,1763592645331,-500.0,0.00010238,2]
[394455663,1763592645340,-500.0,0.00010238,2]
[394455664,1763592645349,-3002.21045256,0.00010238,2]
[394455665,1763592645358,-3002.21045256,0.00010238,2]
[394455666,1763592645367,-500.0,0.00010238,2]
[394455667,1763592645375,-500.0,0.00010238,2]
[394455668,1763592645384,-3002.21045256,0.00010238,2]
[394455669,1763592645393,-500.0,0.00010238,2]
[394455670,1763592645402,-500.0,0.00010238,2]
[394455671,1763592645411,-3002.21045256,0.00010238,2]
[394455672,1763592645419,-3002.21045256,0.00010238,2]
[394455673,1763592645428,-500.0,0.00010238,2]